[Event "German Masters 2021"]
[Site "Magdeburg"]
[Date "2021.07.28"]
[Round "6.5"]
[White "Fridman, Daniel"]
[Black "Kollars, Dmitrij"]
[Result "1/2-1/2"]
[ECO "D02"]
[WhiteElo "2608"]
[BlackElo "2607"]
[Annotator "ChessBase"]
[PlyCount "176"]
[EventDate "2021.07.23"]
[EventType "tourn"]
[EventCountry "GER"]
[SourceTitle "playchess.com"]
[Source "ChessBase"]
[SourceQuality "1"]
[TimeControl "40/5400+30:1800+30"]

1. d4 d5 {[%emt 0:01:23]} 2. Nf3 {[%emt 0:03:59]} Nf6 {[%emt 0:00:12]} 3. c4 {[%emt 0:00:07]} c6 {[%emt 0:00:25]} 4. Qb3 {[%emt 0:07:31]} e6 {[%emt 0:00:43]} 5. Bf4 {[%emt 0:01:24]} c5 {[%emt 0:00:28]} 6. cxd5 {[%emt 0:07:38]} Nxd5 {[%emt 0:01:19]} 7. Bd2 {[%emt 0:14:35]} cxd4 {[%emt 0:09:16]} 8. Nxd4 {[%emt 0:00:16]} Bc5 {[%emt 0:00:49]} 9. Nf3 {[%emt 0:00:19]} Nc6 {[%emt 0:02:22]} 10. Nc3 {[%emt 0:02:56]} O-O {[%emt 0:01:06]} 11. e3 {[%emt 0:01:18]} Qe7 {[%emt 0:04:40]} 12. Bb5 {[%emt 0:06:21]} Bd7 {[%emt 0:20:10]} 13. Nxd5 {[%emt 0:12:54]} exd5 {[%emt 0:00:05]} 14. Qxd5 {[%emt 0:00:10]} Rfd8 {[%emt 0:07:45]} 15. Qg5 {[%emt 0:00:57]} Nd4 {[%emt 0:12:40]} 16. Qxe7 {[%emt 0:00:39]} Nc2+ {[%emt 0:00:08]} 17. Kd1 {[%emt 0:00:06]} Bxe7 {[%emt 0:00:05]} 18. Kxc2 {[%emt 0:07:17]} Bxb5 {[%emt 0:00:05]} 19. Nd4 {[%emt 0:02:35]} Ba4+ {[%emt 0:06:52]} 20. Kd3 {[%emt 0:01:59]} Bb5+ {[%emt 0:01:14]} 21. Kc2 {[%emt 0:00:16]} Ba4+ {[%emt 0:00:06]} 22. b3 {[%emt 0:08:04]} Bc6 {[%emt 0:01:45]} 23. f3 {[%emt 0:00:06]} Bf6 {[%emt 0:01:20]} 24. Bc3 {[%emt 0:00:37]} Bxd4 {[%emt 0:02:18]} 25. Bxd4 {[%emt 0:00:12]} a5 {[%emt 0:00:39]} 26. Kb2 {[%emt 0:13:19]} a4 {[%emt 0:01:21]} 27. Rac1 {[%emt 0:00:36]} axb3 {[%emt 0:02:47]} 28. axb3 {[%emt 0:00:41]} Ra5 {[%emt 0:00:27]} 29. Ra1 {[%emt 0:01:37]} Rg5 {[%emt 0:02:27]} 30. Rhg1 {[%emt 0:00:15]} f6 {[%emt 0:00:30]} 31. Rad1 {[%emt 0:01:07]} Rgd5 {[%emt 0:02:49]} 32. Rd2 {[%emt 0:01:12]} Kf7 {[%emt 0:00:40]} 33. Rf2 {[%emt 0:00:54]} h5 {[%emt 0:01:31]} 34. h4 {[%emt 0:00:32]} Ra8 {[%emt 0:01:18]} 35. Bc3 {[%emt 0:01:46]} Rd3 {[%emt 0:01:40]} 36. Re1 {[%emt 0:02:01]} Rad8 {[%emt 0:01:46]} 37. Kc2 {[%emt 0:00:19]} Bb5 {[%emt 0:03:22]} 38. Rd2 {[%emt 0:00:25]} f5 {[%emt 0:06:12]} 39. Rxd3 {[%emt 0:00:56]} Bxd3+ {[%emt 0:00:05]} 40. Kb2 {[%emt 0:00:13]} Rd6 {[%emt 0:00:59]} 41. Rd1 {[%emt 0:31:56]} Rd7 {[%emt 0:32:16]} 42. Bd4 {[%emt 0:00:00]} Ba6 {[%emt 0:00:00]} 43. Rd2 {[%emt 0:00:00]} Rd6 {[%emt 0:00:00]} 44. Kc3 {[%emt 0:00:00]} Bf1 {[%emt 0:00:00]} 45. Rf2 {[%emt 0:00:00]} Bb5 {[%emt 0:00:00]} 46. Kb4 {[%emt 0:00:00]} Bd7 {[%emt 0:00:00]} 47. Kc5 {[%emt 0:00:00]} Ra6 {[%emt 0:00:00]} 48. b4 {[%emt 0:00:00]} g6 {[%emt 0:00:00]} 49. Kd5 {[%emt 0:00:00]} Ra2 {[%emt 0:00:00]} 50. Bb2 {[%emt 0:00:00]} Ra4 {[%emt 0:00:00]} 51. Kd6 {[%emt 0:00:00]} Ke8 {[%emt 0:00:00]} 52. Bc3 {[%emt 0:00:00]} Ra6+ {[%emt 0:00:00]} 53. Ke5 {[%emt 0:00:00]} Ba4 {[%emt 0:00:00]} 54. Bd4 {[%emt 0:00:00]} Kf7 {[%emt 0:00:00]} 55. Kf4 {[%emt 0:00:49]} Bb3 {[%emt 0:00:00]} 56. Rb2 {[%emt 0:00:59]} Bc4 {[%emt 0:00:36]} 57. b5 {[%emt 0:04:42]} Ra2 {[%emt 0:00:20]} 58. Rb4 {[%emt 0:00:02]} Bf1 {[%emt 0:00:07]} 59. Rb1 {[%emt 0:01:21]} Bd3 {[%emt 0:01:17]} 60. Rb3 {[%emt 0:00:02]} Bf1 {[%emt 0:01:39]} 61. Rc3 {[%emt 0:01:28]} Bxb5 {[%emt 0:01:33]} 62. Rc7+ {[%emt 0:00:01]} Ke6 {[%emt 0:00:09]} 63. Rxb7 {[%emt 0:00:02]} Bc6 {[%emt 0:00:07]} 64. Rb6 {[%emt 0:00:17]} Kd6 {[%emt 0:02:30]} 65. Bb2 {[%emt 0:00:42]} Kc5 {[%emt 0:01:13]} 66. Bd4+ {[%emt 0:00:07]} Kd6 {[%emt 0:00:03]} 67. Bb2 {[%emt 0:00:24]} Kc5 {[%emt 0:00:01]} 68. Rb8 {[%emt 0:00:13]} Bb5 {[%emt 0:00:38]} 69. Bd4+ {[%emt 0:00:07]} Kc4 {[%emt 0:00:04]} 70. Kg3 {[%emt 0:03:04]} Ra6 {[%emt 0:00:51]} 71. Rg8 {[%emt 0:00:06]} Kd5 {[%emt 0:00:37]} 72. Rb8 {[%emt 0:01:09]} Bf1 {[%emt 0:00:18]} 73. Rb1 {[%emt 0:00:03]} Bc4 {[%emt 0:00:24]} 74. Kf4 {[%emt 0:00:45]} Ra2 {[%emt 0:00:20]} 75. g3 {[%emt 0:00:24]} Rf2 {[%emt 0:01:07]} 76. Ba7 {[%emt 0:00:44]} Rf1 {[%emt 0:00:55]} 77. Rb2 {[%emt 0:00:02]} Bd3 {[%emt 0:01:40]} 78. Bb8 {[%emt 0:00:31]} Be4 {[%emt 0:01:52]} 79. Kg5 {[%emt 0:00:01]} Bxf3 {[%emt 0:00:16]} 80. Kxg6 {[%emt 0:00:03]} Bg4 {[%emt 0:00:10]} 81. Rb5+ {[%emt 0:00:32]} Ke4 {[%emt 0:00:30]} 82. Bf4 {[%emt 0:01:01]} Ra1 {[%emt 0:00:27]} 83. Re5+ {[%emt 0:00:49]} Kf3 {[%emt 0:00:12]} 84. Rb5 {[%emt 0:00:41]} Ra6+ {[%emt 0:00:17]} 85. Kg5 {[%emt 0:00:07]} Ra8 {[%emt 0:00:09]} 86. Rb4 {[%emt 0:00:09]} Rg8+ {[%emt 0:00:19]} 87. Kh6 {[%emt 0:00:08]} Rh8+ {[%emt 0:00:08]} 88. Kg7 {[%emt 0:00:03]} Ra8 {[%emt 0:00:11]} 1/2-1/2

[Event "German Masters 2021"]
[Site "Magdeburg"]
[Date "2021.07.29"]
[Round "7.3"]
[White "Parvanyan, Ashot"]
[Black "Heimann, Andreas"]
[Result "1/2-1/2"]
[ECO "D02"]
[WhiteElo "2451"]
[BlackElo "2599"]
[Annotator "ChessBase"]
[PlyCount "85"]
[EventDate "2021.07.23"]
[EventType "tourn"]
[EventCountry "GER"]
[SourceTitle "playchess.com"]
[Source "ChessBase"]
[SourceQuality "1"]
[TimeControl "40/5400+30:1800+30"]

1. Nf3 {[%emt 0:00:04]} d5 {[%emt 0:00:03]} 2. d4 {[%emt 0:00:39]} Nf6 {[%emt 0:00:06]} 3. c4 {[%emt 0:00:03]} e6 {[%emt 0:00:02]} 4. g3 {[%emt 0:00:15]} Bb4+ {[%emt 0:00:05]} 5. Bd2 {[%emt 0:00:06]} Be7 {[%emt 0:00:03]} 6. Bg2 {[%emt 0:00:51]} O-O {[%emt 0:00:07]} 7. O-O {[%emt 0:00:04]} Nbd7 {[%emt 0:00:04]} 8. Bc3 {[%emt 0:07:19]} c6 {[%emt 0:01:15]} 9. Nbd2 {[%emt 0:01:46]} b6 {[%emt 0:00:05]} 10. b4 {[%emt 0:03:43]} Bb7 {[%emt 0:05:35]} 11. Qb3 {[%emt 0:07:22]} Rb8 {[%emt 0:03:40]} 12. Rfd1 {[%emt 0:08:26]} c5 {[%emt 0:03:21]} 13. b5 {[%emt 0:17:35]} Qc7 {[%emt 0:15:34]} 14. Rac1 {[%emt 0:00:45]} a6 {[%emt 0:06:59]} 15. a4 {[%emt 0:05:29]} axb5 {[%emt 0:03:51]} 16. axb5 {[%emt 0:05:06]} Ra8 {[%emt 0:00:47]} 17. Ra1 {[%emt 0:01:28]} h6 {[%emt 0:06:17]} 18. cxd5 {[%emt 0:03:22]} Bxd5 {[%emt 0:03:49]} 19. Qb2 {[%emt 0:00:11]} Qb7 {[%emt 0:00:02]} 20. Bf1 {[%emt 0:09:17]} Rfc8 {[%emt 0:03:59]} 21. Ne5 {[%emt 0:11:16]} Nxe5 {[%emt 0:03:58]} 22. dxe5 {[%emt 0:00:04]} Ne4 {[%emt 0:00:03]} 23. Nxe4 {[%emt 0:00:22]} Bxe4 {[%emt 0:00:06]} 24. f3 {[%emt 0:00:24]} Bg6 {[%emt 0:00:05]} 25. e4 {[%emt 0:00:59]} Rxa1 {[%emt 0:19:01]} 26. Rxa1 {[%emt 0:00:23]} c4 {[%emt 0:00:02]} 27. Ra4 {[%emt 0:05:03]} Bc5+ {[%emt 0:24:12]} 28. Kh1 {[%emt 0:02:00]} Qd7 {[%emt 0:00:02]} 29. Rxc4 {[%emt 0:02:59]} Qd1 {[%emt 0:00:03]} 30. Qe2 {[%emt 0:01:41]} Qb3 {[%emt 0:00:01]} 31. Bd4 {[%emt 0:05:23]} Ra8 {[%emt 0:00:34]} 32. Bxc5 {[%emt 0:00:05]} bxc5 {[%emt 0:00:31]} 33. Rc2 {[%emt 0:00:16]} c4 {[%emt 0:00:21]} 34. Rb2 {[%emt 0:01:51]} Qa3 {[%emt 0:00:24]} 35. b6 {[%emt 0:00:18]} c3 {[%emt 0:01:11]} 36. b7 {[%emt 0:00:36]} cxb2 {[%emt 0:00:34]} 37. bxa8=Q+ {[%emt 0:00:24]} Qxa8 {[%emt 0:00:05]} 38. Qxb2 {[%emt 0:00:09]} Qa7 {[%emt 0:00:06]} 39. h3 {[%emt 0:01:23]} Qe3 {[%emt 0:00:08]} 40. Bg2 {[%emt 0:00:29]} Bh5 {[%emt 0:00:16]} 41. g4 {[%emt 0:02:29]} Bg6 {[%emt 0:00:07]} 42. Kh2 {[%emt 0:03:13]} h5 {[%emt 0:01:10]} 43. Qb5 {[%emt 0:08:49]} 1/2-1/2

[Event "German Masters 2021"]
[Site "Magdeburg"]
[Date "2021.07.29"]
[Round "7.4"]
[White "Braun, Arik"]
[Black "Engel, Luis"]
[Result "0-1"]
[ECO "A06"]
[WhiteElo "2609"]
[BlackElo "2543"]
[Annotator "ChessBase"]
[PlyCount "44"]
[EventDate "2021.07.23"]
[EventType "tourn"]
[EventCountry "GER"]
[SourceTitle "playchess.com"]
[Source "ChessBase"]
[SourceQuality "1"]
[TimeControl "40/5400+30:1800+30"]

1. Nf3 {[%emt 0:00:03]} d5 {[%emt 0:00:23]} 2. e3 {[%emt 0:00:05]} Nf6 {[%emt 0:00:06]} 3. c4 {[%emt 0:00:06]} e6 {[%emt 0:00:05]} 4. b3 {[%emt 0:00:13]} c5 {[%emt 0:00:38]} 5. Bb2 {[%emt 0:00:42]} Nc6 {[%emt 0:00:06]} 6. cxd5 {[%emt 0:01:14]} exd5 {[%emt 0:00:06]} 7. Be2 {[%emt 0:00:27]} d4 {[%emt 0:05:40]} 8. Bb5 {[%emt 0:00:18]} Bd6 {[%emt 0:01:11]} 9. h3 {[%emt 0:04:51]} O-O {[%emt 0:05:31]} 10. O-O {[%emt 0:06:57]} Nd5 {[%emt 0:06:12]} 11. Bxc6 {[%emt 0:08:06]} bxc6 {[%emt 0:02:12]} 12. Na3 {[%emt 0:00:05]} Re8 {[%emt 0:08:17]} 13. Nc4 {[%emt 0:00:29]} Re6 {[%emt 0:05:42]} 14. Re1 {[%emt 0:06:31]} Rh6 {[%emt 0:04:41]} 15. Nxd6 {[%emt 0:19:37]} Qxd6 {[%emt 0:00:28]} 16. exd4 {[%emt 0:01:43]} Bxh3 {[%emt 0:03:51]} 17. Qe2 {[%emt 0:01:57]} Rf8 {[%emt 0:11:35]} 18. Qe5 {[%emt 0:20:14]} Qd7 {[%emt 0:02:14]} 19. g3 {[%emt 0:11:30]} f6 {[%emt 0:03:11]} 20. Qe2 {[%emt 0:03:35]} Bg2 {[%emt 0:07:01]} 21. Nh4 {[%emt 0:00:26]} Nf4 {[%emt 0:02:00]} 22. gxf4 {[%emt 0:00:44]} Bd5 {[%emt 0:02:17]} 0-1

[Event "German Masters 2021"]
[Site "Magdeburg"]
[Date "2021.07.31"]
[Round "9.2"]
[White "Parvanyan, Ashot"]
[Black "Kollars, Dmitrij"]
[Result "1/2-1/2"]
[ECO "E04"]
[WhiteElo "2451"]
[BlackElo "2607"]
[Annotator "ChessBase"]
[PlyCount "51"]
[EventDate "2021.07.23"]
[EventType "tourn"]
[EventCountry "GER"]
[SourceTitle "playchess.com"]
[Source "ChessBase"]
[SourceQuality "1"]
[TimeControl "40/5400+30:1800+30"]

1. Nf3 {[%emt 0:01:53]} d5 {[%emt 0:02:32]} 2. d4 {[%emt 0:00:17]} Nf6 {[%emt 0:00:16]} 3. c4 {[%emt 0:00:04]} e6 {[%emt 0:00:12]} 4. g3 {[%emt 0:00:09]} dxc4 {[%emt 0:00:20]} 5. Bg2 {[%emt 0:00:30]} a6 {[%emt 0:00:22]} 6. O-O {[%emt 0:00:22]} Nc6 {[%emt 0:00:29]} 7. Be3 {[%emt 0:00:18]} Bd7 {[%emt 0:07:17]} 8. Qc1 {[%emt 0:01:28]} b5 {[%emt 0:02:41]} 9. b3 {[%emt 0:00:10]} cxb3 {[%emt 0:02:03]} 10. axb3 {[%emt 0:00:32]} Bd6 {[%emt 0:09:14]} 11. Nc3 {[%emt 0:12:30]} O-O {[%emt 0:04:43]} 12. Bg5 {[%emt 0:12:06]} h6 {[%emt 0:04:22]} 13. Bxf6 {[%emt 0:00:34]} Qxf6 {[%emt 0:00:07]} 14. Ne4 {[%emt 0:06:14]} Qe7 {[%emt 0:01:47]} 15. Qb2 {[%emt 0:09:06]} Nb4 {[%emt 0:07:01]} 16. Ne5 {[%emt 0:04:24]} Bxe5 {[%emt 0:05:19]} 17. dxe5 {[%emt 0:00:04]} Bc6 {[%emt 0:00:34]} 18. Nf6+ {[%emt 0:08:19]} Kh8 {[%emt 0:02:51]} 19. Bxc6 {[%emt 0:04:20]} Nxc6 {[%emt 0:00:05]} 20. Qc2 {[%emt 0:01:13]} gxf6 {[%emt 0:00:06]} 21. exf6 {[%emt 0:00:21]} Qd6 {[%emt 0:09:16]} 22. Qc1 {[%emt 0:20:53]} Kh7 {[%emt 0:00:09]} 23. Qc2+ {[%emt 0:01:24]} Kh8 {[%emt 0:00:42]} 24. Qc1 {[%emt 0:00:07]} Kh7 {[%emt 0:00:08]} 25. Qc2+ {[%emt 0:00:03]} Kh8 {[%emt 0:00:38]} 26. Qc1 1/2-1/2

[Event "German Masters 2021"]
[Site "Magdeburg"]
[Date "2021.07.31"]
[Round "9.5"]
[White "Graf, Alexander"]
[Black "Engel, Luis"]
[Result "1/2-1/2"]
[ECO "E10"]
[WhiteElo "2569"]
[BlackElo "2543"]
[Annotator "ChessBase"]
[PlyCount "170"]
[EventDate "2021.07.23"]
[EventType "tourn"]
[EventCountry "GER"]
[SourceTitle "playchess.com"]
[Source "ChessBase"]
[SourceQuality "1"]
[TimeControl "40/5400+30:1800+30"]

1. d4 {[%emt 0:00:06]} Nf6 {[%emt 0:00:07]} 2. c4 {[%emt 0:00:08]} e6 {[%emt 0:00:05]} 3. Nf3 {[%emt 0:00:10]} d5 {[%emt 0:00:07]} 4. g3 {[%emt 0:00:09]} dxc4 {[%emt 0:00:06]} 5. Qa4+ {[%emt 0:00:17]} Nbd7 {[%emt 0:02:07]} 6. Bg2 {[%emt 0:00:10]} a6 {[%emt 0:03:23]} 7. Qxc4 {[%emt 0:03:34]} b5 {[%emt 0:00:24]} 8. Qc6 {[%emt 0:00:10]} Rb8 {[%emt 0:01:54]} 9. Bf4 {[%emt 0:00:10]} Bb7 {[%emt 0:08:11]} 10. Qxc7 {[%emt 0:01:53]} Qxc7 {[%emt 0:08:18]} 11. Bxc7 {[%emt 0:00:10]} Rc8 {[%emt 0:00:03]} 12. Ba5 {[%emt 0:02:13]} Rc1+ {[%emt 0:08:12]} 13. Kd2 {[%emt 0:00:10]} Rc4 {[%emt 0:00:10]} 14. b3 {[%emt 0:08:24]} Bxf3 {[%emt 0:08:49]} 15. Bxf3 {[%emt 0:01:24]} Rxd4+ {[%emt 0:00:09]} 16. Kc2 {[%emt 0:00:37]} e5 {[%emt 0:13:51]} 17. Nc3 {[%emt 0:06:07]} Bc5 {[%emt 0:02:46]} 18. e3 {[%emt 0:10:32]} Rd6 {[%emt 0:00:07]} 19. Rhd1 {[%emt 0:08:14]} Ke7 {[%emt 0:01:48]} 20. b4 {[%emt 0:07:16]} Rxd1 {[%emt 0:08:06]} 21. Rxd1 {[%emt 0:04:01]} Bd6 {[%emt 0:00:08]} 22. Bb7 {[%emt 0:00:38]} Nb8 {[%emt 0:00:31]} 23. h3 {[%emt 0:01:41]} Ke6 {[%emt 0:03:56]} 24. Kb3 {[%emt 0:00:20]} h5 {[%emt 0:03:03]} 25. a4 {[%emt 0:00:31]} bxa4+ {[%emt 0:00:43]} 26. Nxa4 {[%emt 0:01:28]} h4 {[%emt 0:05:45]} 27. g4 {[%emt 0:01:08]} Nbd7 {[%emt 0:01:26]} 28. Bxa6 {[%emt 0:03:55]} Ne4 {[%emt 0:00:39]} 29. Bc4+ {[%emt 0:01:09]} Ke7 {[%emt 0:00:09]} 30. Nc3 {[%emt 0:01:08]} Ndf6 {[%emt 0:01:41]} 31. Nxe4 {[%emt 0:03:56]} Nxe4 {[%emt 0:00:05]} 32. Bd5 {[%emt 0:00:21]} Ng5 {[%emt 0:01:05]} 33. Bg2 {[%emt 0:01:13]} Rb8 {[%emt 0:01:23]} 34. Rc1 {[%emt 0:00:14]} g6 {[%emt 0:01:58]} 35. Ka4 {[%emt 0:00:32]} f5 {[%emt 0:00:32]} 36. b5 {[%emt 0:02:47]} fxg4 {[%emt 0:00:51]} 37. hxg4 {[%emt 0:00:07]} h3 {[%emt 0:01:30]} 38. Bh1 {[%emt 0:01:04]} Ne6 {[%emt 0:02:40]} 39. b6 {[%emt 0:02:01]} Nc5+ {[%emt 0:05:16]} 40. Kb5 {[%emt 0:00:31]} Nb3 {[%emt 0:03:49]} 41. Rc2 {[%emt 0:34:46]} Nxa5 {[%emt 0:31:41]} 42. Kxa5 {[%emt 0:00:09]} h2 {[%emt 0:00:00]} 43. b7 {[%emt 0:00:00]} Kd7 {[%emt 0:00:00]} 44. Kb6 {[%emt 0:00:00]} Rd8 {[%emt 0:00:00]} 45. g5 {[%emt 0:00:00]} Bb8 {[%emt 0:00:00]} 46. Rd2+ {[%emt 0:00:00]} Ke7 {[%emt 0:00:00]} 47. Rxd8 {[%emt 0:00:00]} Kxd8 {[%emt 0:00:00]} 48. Kb5 {[%emt 0:00:00]} Bd6 {[%emt 0:00:00]} 49. Kc6 {[%emt 0:02:03]} Ke7 {[%emt 0:00:00]} 50. Kd5 {[%emt 0:00:34]} Kd7 {[%emt 0:00:00]} 51. Be4 {[%emt 0:01:34]} Ke7 {[%emt 0:00:00]} 52. Kc4 {[%emt 0:01:12]} Kd7 {[%emt 0:00:00]} 53. Kd5 {[%emt 0:06:12]} Ke7 {[%emt 0:00:00]} 54. Bh1 {[%emt 0:02:41]} Kd7 {[%emt 0:00:00]} 55. Bg2 {[%emt 0:00:02]} Ke7 {[%emt 0:00:00]} 56. Ke4 {[%emt 0:00:22]} Ke6 {[%emt 0:00:00]} 57. Kd3 {[%emt 0:03:52]} Kf5 {[%emt 0:00:00]} 58. Be4+ {[%emt 0:00:30]} Kxg5 {[%emt 0:00:00]} 59. Ke2 {[%emt 0:00:06]} Kh4 {[%emt 0:00:00]} 60. Kf1 {[%emt 0:00:14]} Kh3 {[%emt 0:00:00]} 61. Bg2+ {[%emt 0:00:17]} Kg4 {[%emt 0:00:00]} 62. Bc6 {[%emt 0:02:39]} Kh3 {[%emt 0:00:00]} 63. Bd7+ {[%emt 0:00:06]} Kh4 {[%emt 0:00:00]} 64. Kg2 {[%emt 0:00:11]} g5 {[%emt 0:00:42]} 65. Kxh2 {[%emt 0:00:36]} g4 {[%emt 0:00:09]} 66. Kg2 {[%emt 0:00:22]} Bb8 {[%emt 0:00:47]} 67. Kf1 {[%emt 0:04:13]} g3 {[%emt 0:01:15]} 68. fxg3+ {[%emt 0:00:57]} Kxg3 {[%emt 0:00:06]} 69. Ke2 {[%emt 0:00:04]} Kh4 {[%emt 0:00:13]} 70. Kd3 {[%emt 0:00:17]} Kg5 {[%emt 0:00:06]} 71. e4 {[%emt 0:01:21]} Kf6 {[%emt 0:00:10]} 72. Kc4 {[%emt 0:00:02]} Ke7 {[%emt 0:00:09]} 73. Bf5 {[%emt 0:01:15]} Kd6 {[%emt 0:00:07]} 74. Kb5 {[%emt 0:00:02]} Kc7 {[%emt 0:00:31]} 75. Ka6 {[%emt 0:01:03]} Kc6 {[%emt 0:00:12]} 76. Be6 {[%emt 0:00:09]} Kd6 {[%emt 0:00:32]} 77. Bb3 {[%emt 0:00:33]} Kc6 {[%emt 0:00:18]} 78. Bf7 {[%emt 0:00:02]} Kc5 {[%emt 0:00:21]} 79. Bd5 {[%emt 0:00:02]} Kd6 {[%emt 0:00:10]} 80. Kb6 {[%emt 0:00:01]} Kd7 {[%emt 0:00:20]} 81. Bc4 {[%emt 0:00:29]} Kd6 {[%emt 0:00:11]} 82. Bf1 {[%emt 0:00:43]} Kd7 {[%emt 0:00:08]} 83. Bh3+ {[%emt 0:00:13]} Kd6 {[%emt 0:00:08]} 84. Bf5 {[%emt 0:00:07]} Ke7 {[%emt 0:00:08]} 85. Kc6 {[%emt 0:00:21]} Bd6 1/2-1/2